fUST/lending_fUST_20250505
["ID","MTS","AMOUNT","RATE_DAILY","PERIOD"]
[359956381,1746447049340,-501.24117393,0.00035873,5]
[359956383,1746447049349,-298.63114859,0.00035873,5]
[359956385,1746447049358,-500.0,0.00035873,5]
[359956387,1746447049368,-502.74831825,0.00035873,5]
[359956389,1746447049377,-500.0,0.00035873,5]
[359956391,1746447049387,-500.0,0.00035873,5]
[359956393,1746447049396,-500.0,0.00035873,5]
[359956395,1746447049405,-500.0,0.00035873,5]
[359956396,1746447049415,-500.0,0.00035873,5]
[359956398,1746447049424,-500.0,0.00035873,5]
[359956400,1746447049433,-501.68500962,0.00035873,5]
[359956402,1746447049443,-505.23910651,0.00035873,5]
[359956404,1746447049452,-500.0,0.00035873,5]
[359956406,1746447049461,-709.76410694,0.0003588,3]
[359956408,1746447049470,-202.0,0.00035886,14]
[359956410,1746447049480,-151.0,0.00035886,14]
[359956412,1746447049489,-203.17799896,0.00035886,14]
[359956414,1746447049499,-151.0,0.00035886,14]
[359956416,1746447049509,-170.26380611,0.00035886,14]
[359956418,1746447049518,-155.42546646,0.00035886,14]
[359956420,1746447049527,-360.0,0.00035886,14]
[359956422,1746447049537,-360.0,0.00035886,14]
[359956424,1746447049547,-360.0,0.00035886,14]
[359956426,1746447049557,-151.0,0.0003589,14]
[359956428,1746447049566,-400.0,0.0003589,14]
[359956430,1746447049577,-151.0,0.0003589,14]
[359956432,1746447049587,-154.474898,0.0003589,14]
[359956434,1746447049596,-400.0,0.0003589,14]
[359956436,1746447049606,-505.16920129,0.0003589,14]
[359956438,1746447049616,-400.0,0.0003589,14]
[359956440,1746447049626,-400.0,0.0003589,14]
[359956442,1746447049635,-400.0,0.0003589,14]
[359956444,1746447049645,-400.0,0.0003589,14]
[359956446,1746447049654,-400.0,0.0003589,14]
[359956448,1746447049664,-854.21,0.0003589,14]
[359956450,1746447049674,-400.0,0.0003589,14]
[359956452,1746447049683,-400.0,0.0003589,14]
[359956454,1746447049693,-400.0,0.0003589,14]
[359956456,1746447049702,-400.0,0.0003589,14]
[359956458,1746447049712,-400.0,0.0003589,14]
[359956460,1746447049722,-400.0,0.0003589,14]
[359956462,1746447049731,-400.0,0.0003589,14]
[359956464,1746447049742,-400.0,0.0003589,14]
[359956466,1746447049753,-400.0,0.0003589,14]
[359956468,1746447049763,-400.0,0.0003589,14]
[359956470,1746447049772,-400.0,0.0003589,14]
[359956472,1746447049781,-175.09005818,0.0003589,14]
[359956474,1746447049793,-400.0,0.0003589,14]
[359956476,1746447049802,-226.01153018,0.0003589,14]
[359956478,1746447049812,-501.89761919,0.0003589,14]
[359956480,1746447049822,-400.0,0.0003589,14]
[359956482,1746447049831,-404.78731066,0.0003589,14]
[359956484,1746447049840,-400.0,0.0003589,14]
[359956486,1746447049849,-400.0,0.0003589,14]
[359956488,1746447049858,-400.0,0.0003589,14]
[359956489,1746447049867,-400.0,0.0003589,14]
[359956491,1746447049877,-400.0,0.0003589,14]
[359956493,1746447049886,-400.0,0.0003589,14]
[359956495,1746447049896,-400.0,0.0003589,14]
[359956497,1746447049905,-400.0,0.0003589,14]
[359956499,1746447049915,-400.0,0.0003589,14]
[359956501,1746447049924,-400.0,0.0003589,14]
[359956503,1746447049933,-467.51439622,0.0003589,14]
[359956505,1746447049942,-400.0,0.0003589,14]
[359956507,1746447049951,-400.0,0.0003589,14]
[359956509,1746447049962,-400.94243288,0.0003589,14]
[359956511,1746447049970,-400.0,0.0003589,14]
[359956513,1746447049980,-510.82023478,0.0003589,14]
[359956515,1746447049989,-400.0,0.0003589,14]
[359956517,1746447049998,-1292.12,0.0003589,14]
[359956519,1746447050007,-190.88096192,0.0003589,14]
[359956521,1746447050016,-528.04408005,0.0003589,14]
[359956523,1746447050026,-400.0,0.0003589,14]
[359956525,1746447050035,-400.0,0.0003589,14]
[359956527,1746447050044,-400.0,0.0003589,14]
[359956529,1746447050054,-400.0,0.0003589,14]
[359956531,1746447050063,-541.29,0.0003589,14]
[359956533,1746447050073,-400.0,0.0003589,14]
[359956535,1746447050082,-210.17858371,0.0003589,14]
[359956550,1746447050304,-400.0,0.0003589,14]
[359956551,1746447050314,-509.91523077,0.0003589,14]
[359956552,1746447050323,-527.01518823,0.0003589,14]
[359956553,1746447050334,-473.07626619,0.0003589,14]
[359956554,1746447050343,-400.0,0.0003589,14]
[359956556,1746447050353,-400.0,0.0003589,14]
[359956558,1746447050363,-400.0,0.0003589,14]
[359956560,1746447050372,-400.0,0.0003589,14]
[359956562,1746447050381,-400.0,0.0003589,14]
[359956564,1746447050390,-400.0,0.0003589,14]
[359956566,1746447050399,-500.0,0.0003589,14]
[359956568,1746447050408,-400.0,0.0003589,14]
[359956570,1746447050418,-400.0,0.0003589,14]
[359956572,1746447050428,-489.82,0.0003589,14]
[359956574,1746447050438,-400.0,0.0003589,14]
[359956576,1746447050448,-400.0,0.0003589,14]
[359956578,1746447050457,-358.0,0.0003589,14]
[359956580,1746447050468,-400.0,0.0003589,14]
[359956582,1746447050477,-546.12,0.0003589,14]
[359956584,1746447050487,-401.57409294,0.0003589,14]
[359956586,1746447050496,-400.0,0.0003589,14]
[359956588,1746447050505,-406.66,0.0003589,14]
[359956590,1746447050514,-400.0,0.0003589,14]
[359956592,1746447050523,-400.0,0.0003589,14]
[359956594,1746447050533,-400.0,0.0003589,14]
[359956596,1746447050542,-400.0,0.0003589,14]
[359956598,1746447050551,-400.0,0.0003589,14]
[359956600,1746447050560,-400.0,0.0003589,14]
[359956602,1746447050569,-400.0,0.0003589,14]
[359956604,1746447050579,-278.46942362,0.0003589,14]
[359956606,1746447050589,-400.0,0.0003589,14]
[359956608,1746447050597,-468.4,0.0003589,14]
[359956610,1746447050607,-400.0,0.0003589,14]
[359956612,1746447050616,-400.0,0.0003589,14]
[359956614,1746447050626,-400.0,0.0003589,14]
[359956616,1746447050636,-400.0,0.0003589,14]
[359956618,1746447050644,-585.09,0.0003589,14]
[359956620,1746447050653,-400.0,0.0003589,14]
[359956622,1746447050663,-469.14,0.0003589,14]
[359956624,1746447050672,-1083.99,0.0003589,14]
[359956626,1746447050682,-408.07708959,0.0003589,14]
[359956628,1746447050691,-400.0,0.0003589,14]
[359956630,1746447050700,-242.88260242,0.0003589,14]
[359956632,1746447050710,-400.0,0.0003589,14]
[359956634,1746447050719,-352.80040529,0.0003589,14]
[359956636,1746447050728,-200.0,0.0003589,14]
[359956638,1746447050737,-400.0,0.0003589,14]
[359956640,1746447050750,-504.48907196,0.0003589,14]
[359956642,1746447050759,-400.0,0.0003589,14]
[359956644,1746447050768,-400.0,0.0003589,14]
[359956646,1746447050778,-400.0,0.0003589,14]
[359956648,1746447050787,-400.0,0.0003589,14]
[359956650,1746447050797,-504.01,0.0003589,14]
[359956652,1746447050806,-403.95413531,0.0003589,14]
[359956654,1746447050816,-400.0,0.0003589,14]
[359956666,1746447050917,-478.77,0.0003589,14]
[359956668,1746447050927,-400.0,0.0003589,14]
[359956670,1746447050935,-1625.79,0.0003589,14]
[359956672,1746447050945,-400.0,0.0003589,14]
[359956674,1746447050954,-400.0,0.0003589,14]
[359956676,1746447050963,-400.0,0.0003589,14]
[359956678,1746447050972,-782.91,0.0003589,14]
[359956680,1746447050981,-500.0,0.0003589,14]
[359956682,1746447050990,-434.93811455,0.0003589,14]
[359956684,1746447050999,-434.41534101,0.0003589,14]
[359956686,1746447051008,-465.98,0.0003589,14]
[359956688,1746447051018,-400.0,0.0003589,14]
[359956690,1746447051027,-400.0,0.0003589,14]
[359956692,1746447051036,-2488.1,0.0003589,14]
[359956694,1746447051045,-570.42,0.0003589,14]
[359956696,1746447051054,-400.0,0.0003589,14]
[359956697,1746447051063,-400.0,0.0003589,14]
[359956700,1746447051075,-150.0,0.0003589,14]
[359956702,1746447051084,-1843.23,0.0003589,14]
[359956704,1746447051093,-400.0,0.0003589,14]
[359956706,1746447051102,-400.0,0.0003589,14]
[359956708,1746447051111,-400.0,0.0003589,14]
[359956710,1746447051120,-400.0,0.0003589,14]
[359956712,1746447051129,-628.52,0.0003589,14]
[359956714,1746447051138,-400.0,0.0003589,14]
[359956716,1746447051147,-400.0,0.0003589,14]
[359956718,1746447051156,-661.2,0.0003589,14]
[359956720,1746447051165,-713.13,0.0003589,14]
[359956722,1746447051175,-431.29619958,0.0003589,14]
[359956724,1746447051183,-203.27915131,0.0003589,14]
[359956726,1746447051192,-3111.68,0.0003589,14]
[359956728,1746447051202,-400.0,0.0003589,14]
[359956730,1746447051211,-831.51,0.0003589,14]
[359956732,1746447051220,-400.0,0.0003589,14]
[359956734,1746447051229,-400.0,0.0003589,14]
[359956736,1746447051238,-400.0,0.0003589,14]
[359956738,1746447051247,-731.06,0.0003589,14]
[359956740,1746447051256,-545.53292059,0.0003589,14]
[359956742,1746447051265,-413.32,0.0003589,14]
[359956744,1746447051274,-437.32,0.0003589,14]
[359956746,1746447051283,-400.0,0.0003589,14]
[359956748,1746447051292,-400.0,0.0003589,14]
[359956750,1746447051302,-400.0,0.0003589,14]
[359956752,1746447051311,-523.11,0.0003589,14]
[359956754,1746447051320,-400.0,0.0003589,14]
[359956755,1746447051329,-413.98894416,0.0003589,14]
[359956757,1746447051338,-400.0,0.0003589,14]
[359956759,1746447051349,-400.0,0.0003589,14]
[359956761,1746447051358,-400.0,0.0003589,14]
[359956763,1746447051367,-420.32798542,0.0003589,14]
[359956765,1746447051376,-400.0,0.0003589,14]
[359956767,1746447051385,-400.0,0.0003589,14]
[359956770,1746447051397,-400.0,0.0003589,14]
[359956772,1746447051406,-400.0,0.0003589,14]
[359956774,1746447051415,-400.0,0.0003589,14]
[359956776,1746447051423,-400.0,0.0003589,14]
[359956778,1746447051432,-280.65170628,0.0003589,14]
[359956780,1746447051441,-400.0,0.0003589,14]
[359956782,1746447051450,-400.0,0.0003589,14]
[359956784,1746447051460,-208.67928963,0.0003589,14]
[359956786,1746447051469,-400.0,0.0003589,14]
[359956788,1746447051478,-400.0,0.0003589,14]
[359956790,1746447051487,-400.0,0.0003589,14]
[359956792,1746447051497,-400.0,0.0003589,14]
[359956794,1746447051507,-400.0,0.0003589,14]
[359956796,1746447051516,-1182.06,0.0003589,14]
[359956798,1746447051526,-400.0,0.0003589,14]
[359956800,1746447051535,-400.0,0.0003589,14]
[359956802,1746447051544,-400.0,0.0003589,14]
[359956804,1746447051554,-400.0,0.0003589,14]
[359956806,1746447051563,-407.12679423,0.0003589,14]
[359956808,1746447051572,-556.24,0.0003589,14]
[359956809,1746447051581,-400.0,0.0003589,14]
[359956811,1746447051592,-400.0,0.0003589,14]
[359956814,1746447051602,-625.26,0.0003589,14]
[359956816,1746447051612,-424.57489459,0.0003589,14]
[359956818,1746447051621,-400.0,0.0003589,14]
[359956820,1746447051631,-531.02,0.0003589,14]
[359956822,1746447051641,-400.0,0.0003589,14]
[359956824,1746447051650,-400.0,0.0003589,14]
[359956826,1746447051660,-400.0,0.0003589,14]
[359956828,1746447051669,-400.0,0.0003589,14]
[359956830,1746447051678,-400.0,0.0003589,14]
[359956832,1746447051688,-400.0,0.0003589,14]
[359956834,1746447051697,-400.0,0.0003589,14]
[359956836,1746447051706,-400.0,0.0003589,14]
[359956838,1746447051715,-400.0,0.0003589,14]
[359956840,1746447051725,-400.0,0.0003589,14]
[359956842,1746447051734,-281.10236224,0.0003589,14]
[359956844,1746447051746,-400.0,0.0003589,14]
[359956846,1746447051756,-400.0,0.0003589,14]
[359956848,1746447051765,-799.69,0.0003589,14]
[359956850,1746447051774,-400.0,0.0003589,14]
[359956852,1746447051784,-506.35007047,0.0003589,14]
[359956854,1746447051793,-400.0,0.0003589,14]
[359956856,1746447051803,-400.0,0.0003589,14]
[359956858,1746447051812,-457.08,0.0003589,14]
[359956860,1746447051824,-400.0,0.0003589,14]
[359956862,1746447051834,-802.12,0.0003589,14]
[359956864,1746447051843,-400.0,0.0003589,14]
[359956866,1746447051852,-400.0,0.0003589,14]
[359956868,1746447051861,-400.0,0.0003589,14]
[359956870,1746447051871,-940.6,0.0003589,14]
[359956872,1746447051880,-400.0,0.0003589,14]
[359956874,1746447051890,-434.20150201,0.0003589,14]
[359956876,1746447051899,-411.05,0.0003589,14]
[359956878,1746447051909,-1500.0,0.0003589,31]
[359956880,1746447051918,-406.19070304,0.0003589,14]
[359956882,1746447051928,-400.0,0.0003589,14]
[359956884,1746447051937,-400.0,0.0003589,14]
[359956886,1746447051946,-400.0,0.0003589,14]
[359956888,1746447051956,-400.0,0.0003589,14]
[359956890,1746447051965,-400.0,0.0003589,14]
[359956892,1746447051974,-400.0,0.0003589,14]
[359956894,1746447051984,-757.38,0.0003589,14]
[359956896,1746447051993,-2724.03,0.0003589,2]
[359956898,1746447052003,-440.88,0.0003589,14]
[359956900,1746447052012,-400.0,0.0003589,14]
[359956902,1746447052021,-422.52892672,0.0003589,14]
[359956904,1746447052031,-400.0,0.0003589,14]
[359956906,1746447052040,-742.07,0.0003589,14]
[359956908,1746447052050,-1515.18,0.0003589,14]
[359956910,1746447052059,-400.0,0.0003589,14]
[359956912,1746447052069,-825.95,0.0003589,14]
[359956914,1746447052079,-400.0,0.0003589,14]
[359956916,1746447052089,-407.88337944,0.0003589,14]
[359956918,1746447052098,-400.0,0.0003589,14]
[359956920,1746447052107,-402.62172312,0.0003589,14]
[359956922,1746447052117,-400.0,0.0003589,14]
[359956924,1746447052126,-400.0,0.0003589,14]
[359956926,1746447052135,-400.0,0.0003589,14]
[359956928,1746447052145,-407.65084014,0.0003589,14]
[359956930,1746447052154,-1554.71,0.0003589,14]
[359956932,1746447052164,-820.75,0.0003589,14]
[359956934,1746447052173,-400.0,0.0003589,14]
[359956936,1746447052183,-400.0,0.0003589,14]
[359956938,1746447052193,-400.0,0.0003589,14]
[359956940,1746447052202,-400.0,0.0003589,14]
[359956942,1746447052211,-400.0,0.0003589,14]
[359956944,1746447052221,-400.0,0.0003589,14]
[359956946,1746447052230,-409.29013163,0.0003589,14]
[359956948,1746447052239,-400.0,0.0003589,14]
[359956950,1746447052250,-516.96,0.0003589,14]
[359956952,1746447052259,-400.0,0.0003589,14]
[359956954,1746447052269,-302.90047563,0.0003589,14]
[359956956,1746447052278,-400.0,0.0003589,14]
[359956958,1746447052287,-400.0,0.0003589,14]
[359956960,1746447052297,-756.34,0.0003589,14]
[359956962,1746447052307,-500.0,0.0003589,14]
[359956964,1746447052317,-400.0,0.0003589,14]
[359956966,1746447052327,-400.0,0.0003589,14]
[359956968,1746447052337,-400.0,0.0003589,14]
[359956970,1746447052346,-553.96,0.0003589,14]
[359956972,1746447052355,-400.0,0.0003589,14]
[359956974,1746447052365,-812.5,0.0003589,14]
[359956976,1746447052374,-400.0,0.0003589,14]
[359956978,1746447052383,-400.0,0.0003589,14]
[359956980,1746447052393,-402.47394363,0.0003589,14]
[359956982,1746447052403,-400.0,0.0003589,14]
[359956984,1746447052412,-400.0,0.0003589,14]
[359956986,1746447052421,-400.0,0.0003589,14]
[359956988,1746447052432,-401.8313512,0.0003589,14]
[359957000,1746447052533,-400.0,0.0003589,14]
[359957002,1746447052542,-921.55,0.0003589,14]
[359957004,1746447052552,-468.75,0.0003589,14]
[359957006,1746447052562,-400.0,0.0003589,14]
[359957008,1746447052572,-400.0,0.0003589,14]
[359957010,1746447052582,-400.0,0.0003589,14]
[359957013,1746447052591,-539.54,0.0003589,14]
[359957015,1746447052601,-501.64992268,0.0003589,14]
[359957017,1746447052610,-1788.57,0.0003589,14]
[359957019,1746447052620,-400.0,0.0003589,14]
[359957021,1746447052629,-400.0,0.0003589,14]
[359957023,1746447052639,-400.0,0.0003589,14]
[359957025,1746447052648,-400.0,0.0003589,14]
[359957027,1746447052657,-400.0,0.0003589,14]
[359957029,1746447052667,-2156.23,0.0003589,14]
[359957031,1746447052676,-456.25,0.0003589,14]
[359957033,1746447052686,-400.0,0.0003589,14]
[359957035,1746447052695,-3245.03,0.0003589,14]
[359957037,1746447052705,-400.0,0.0003589,14]
[359957039,1746447052714,-1669.53,0.0003589,14]
[359957041,1746447052724,-400.0,0.0003589,2]
[359957043,1746447052733,-400.0,0.0003589,14]
[359957045,1746447052746,-400.0,0.0003589,14]
[359957047,1746447052755,-400.0,0.0003589,14]
[359957049,1746447052765,-474.78,0.0003589,14]
[359957051,1746447052774,-2472.84,0.0003589,14]
[359957053,1746447052783,-2065.55,0.0003589,14]
[359957055,1746447052793,-407.01364488,0.0003589,14]
[359957057,1746447052803,-400.0,0.0003589,14]
[359957059,1746447052813,-400.0,0.0003589,14]
[359957061,1746447052824,-981.62,0.0003589,14]
[359957063,1746447052833,-400.0,0.0003589,14]
[359957065,1746447052843,-400.0,0.0003589,14]
[359957067,1746447052852,-267.67869078,0.0003589,14]
[359957069,1746447052861,-400.0,0.0003589,14]
[359957071,1746447052870,-1079.26,0.0003589,14]
[359957072,1746447052880,-400.0,0.0003589,14]
[359957073,1746447052889,-500.0,0.0003589,14]
[359957074,1746447052898,-400.0,0.0003589,14]
[359957075,1746447052908,-400.0,0.0003589,14]
[359957076,1746447052917,-500.0,0.0003589,14]
[359957077,1746447052927,-348.20498775,0.0003589,14]
[359957078,1746447052936,-400.0,0.0003589,14]
[359957079,1746447052946,-580.93,0.0003589,14]
[359957080,1746447052956,-400.0,0.0003589,14]
[359957081,1746447052965,-400.0,0.0003589,14]
[359957082,1746447052976,-400.0,0.0003589,14]
[359957084,1746447052985,-400.0,0.0003589,14]
[359957085,1746447052994,-400.0,0.0003589,14]
[359957087,1746447053003,-400.0,0.0003589,14]
[359957089,1746447053012,-1413.2,0.0003589,14]
[359957091,1746447053022,-570.28523359,0.0003589,14]
[359957114,1746447053225,-1266.38476641,0.0003589,14]
[359957116,1746447053235,-400.0,0.0003589,14]
[359957118,1746447053244,-493.97130138,0.0003589,14]
[359957120,1746447053254,-1326.36,0.0003589,14]
[359957122,1746447053263,-306.31585187,0.0003589,14]
[359957124,1746447053273,-400.0,0.0003589,14]
[359957126,1746447053283,-400.0,0.0003589,14]
[359957128,1746447053292,-612.35,0.0003589,14]
[359957130,1746447053302,-400.0,0.0003589,14]
[359957132,1746447053312,-1612.97,0.0003589,14]
[359957134,1746447053321,-1367.12,0.0003589,14]
[359957136,1746447053330,-418.28866978,0.0003589,14]
[359957138,1746447053340,-2693.37,0.0003589,14]
[359957140,1746447053350,-833.74,0.0003589,14]
[359957142,1746447053359,-504.00355408,0.0003589,14]
[359957144,1746447053369,-400.0,0.0003589,14]
[359957146,1746447053378,-404.48309821,0.0003589,14]
[359957148,1746447053387,-1673.81,0.0003589,14]
[359957150,1746447053397,-726.94,0.0003589,14]
[359957152,1746447053406,-400.0,0.0003589,14]
[359957154,1746447053416,-400.0,0.0003589,14]
[359957156,1746447053425,-400.0,0.0003589,14]
[359957158,1746447053435,-400.0,0.0003589,14]
[359957160,1746447053444,-714.32,0.0003589,14]
[359957162,1746447053453,-400.0,0.0003589,14]
[359957164,1746447053463,-400.0,0.0003589,14]
[359957166,1746447053473,-400.0,0.0003589,14]
[359957169,1746447053483,-400.0,0.0003589,14]
[359957171,1746447053492,-400.0,0.0003589,14]
[359957173,1746447053501,-400.0,0.0003589,14]
[359957175,1746447053511,-400.0,0.0003589,14]
[359957176,1746447053520,-400.0,0.0003589,14]
[359957178,1746447053529,-1419.53,0.0003589,14]
[359957180,1746447053539,-469.39,0.0003589,14]
[359957183,1746447053550,-856.13,0.0003589,14]
[359957185,1746447053559,-400.0,0.0003589,14]
[359957187,1746447053568,-400.0,0.0003589,14]
[359957188,1746447053578,-403.4040547,0.0003589,14]
[359957190,1746447053588,-212.6441402,0.0003589,14]
[359957193,1746447053598,-3964.68,0.0003589,14]
[359957194,1746447053607,-400.0,0.0003589,14]
[359957196,1746447053616,-526.25,0.0003589,14]
[359957198,1746447053625,-401.49,0.0003589,14]
[359957200,1746447053635,-400.0,0.0003589,14]
[359957203,1746447053645,-400.0,0.0003589,14]
[359957205,1746447053654,-538.14895932,0.0003589,14]
[359957207,1746447053664,-400.0,0.0003589,14]
[359957209,1746447053674,-400.0,0.0003589,14]
[359957211,1746447053683,-235.50588791,0.0003589,14]
[359957213,1746447053692,-400.0,0.0003589,14]
[359957215,1746447053701,-1886.66,0.0003589,14]
[359957226,1746447053806,-11513.85,0.0003589,14]
[359957228,1746447053815,-501.06772822,0.0003589,14]
[359957230,1746447053827,-1963.84,0.0003589,14]
[359957232,1746447053837,-152.98198792,0.0003589,14]
[359958510,1746447603113,1085.57999998,0.00019,2]
[359958546,1746447905397,-239.61984239,0.00019,2]
[359958547,1746447913497,-151.0,0.00019,2]
[359958548,1746447916321,-334.3023137,0.00019,2]
[359958550,1746447919777,-106.75644675,0.00019,2]
[359958557,1746448042144,-298.25929658,0.00027397,2]
[359958558,1746448067898,5001.95752491,0.00018,2]
[359958559,1746448074463,-7065.0,0.00019706,2]
[359958564,1746448115287,4463.55645381,0.00021,10]
[359958565,1746448116278,-191.49006495,0.00022,7]
[359958574,1746448120252,-77.24934515,0.00019706,2]
[359958575,1746448120278,-97.68671356,0.00022,7]
[359958576,1746448120979,675.60735256,0.00018,2]
[359958577,1746448125034,-164.91728121,0.00022,7]
[359958578,1746448127596,-182.1060237,0.00022,7]
[359958579,1746448130560,-210.27811691,0.00022,7]
[359958580,1746448136036,-86.22508529,0.00022,7]
[359958588,1746448203076,157.0,0.00019,2]
[359958628,1746448232644,-67.24000942,0.00027397,2]
[359958630,1746448232655,-357.419197,0.00031839,2]
[359958632,1746448232666,-1506.44738046,0.00032,2]
[359958634,1746448232675,-160.0,0.00032,2]
[359958636,1746448232685,-256.9998418,0.00032024,2]
[359958638,1746448232694,-358.46975574,0.000329,27]
[359958640,1746448232705,-1355.0,0.00033164,3]
[359958642,1746448232714,-365.499306,0.00033165,2]
[359958644,1746448232723,-358.4697555,0.00033176,28]
[359958652,1746448232906,-400.0,0.00033451,3]
[359958653,1746448232916,-358.4697555,0.00033452,28]
[359958654,1746448232925,-6258.87346156,0.00033452,2]
[359958655,1746448232935,-545.0,0.00033594,2]
[359958656,1746448232945,-358.4697555,0.00033728,29]
[359958657,1746448232955,-507.59556259,0.0003379,2]
[359958658,1746448232965,-358.4697555,0.00034003,30]
[359958659,1746448232975,-160.0,0.00034089,2]
[359958660,1746448232985,-300.0,0.00034105,3]
[359958661,1746448232995,-400.0,0.00034105,2]
[359958662,1746448233004,-180.0,0.00034105,3]
[359958663,1746448233014,-300.0,0.00034105,3]
[359958664,1746448233024,-155.55240919,0.00034107,7]
[359958665,1746448233034,-253.36038881,0.00034107,7]
[359958666,1746448233044,-500.0,0.00034107,7]
[359958667,1746448233053,-500.0,0.00034107,7]
[359958668,1746448233063,-500.0,0.00034107,7]
[359958669,1746448233072,-500.0,0.00034107,7]
[359958670,1746448233082,-300.53703792,0.00034107,7]
[359958671,1746448233092,-500.0,0.00034107,7]
[359958672,1746448233102,-500.0,0.00034107,7]
[359958673,1746448233112,-500.0,0.00034107,7]
[359958674,1746448233123,-500.0,0.00034107,7]
[359958675,1746448233132,-427.63547153,0.00034107,7]
[359958676,1746448233142,-568.68380149,0.00034107,7]
[359958677,1746448233151,-500.0,0.00034107,7]
[359958678,1746448233161,-2211.80504762,0.00034108,2]
[359958679,1746448233173,-6296.6666415,0.00034108,2]
[359958680,1746448233188,-16391.52831088,0.00034108,2]
[359958681,1746448233198,-345.9581414,0.00034179,2]
[359958682,1746448233207,-358.4697555,0.00034279,30]
[359958683,1746448233217,-358.4697555,0.00034555,31]
[359958684,1746448233227,-1000.0,0.00034567,15]
[359958685,1746448233236,-160.0,0.00034736,3]
[359958686,1746448233246,-358.4697555,0.00034831,31]
[359958687,1746448233255,-157.72,0.000349,2]
[359958688,1746448233265,-935.1261219,0.0003493,4]
[359958689,1746448233275,-345.9581414,0.00034996,2]
[359958690,1746448233285,-358.4697555,0.00035107,32]
[359958691,1746448233294,-358.4697555,0.00035383,32]
[359958692,1746448233303,-448.92675836,0.00035516,2]
[359958693,1746448233313,-1100.0,0.00035534,60]
[359958694,1746448233324,-373.95805463,0.00035558,2]
[359958695,1746448233333,-182.23035355,0.00035581,2]
[359958696,1746448233342,-529.93008847,0.00035606,3]
[359958729,1746448238600,-150.0,0.00030297,2]
[359958730,1746448238610,-173.66820526,0.000319,2]
[359958732,1746448238619,-173.66820526,0.00033628,2]
[359958734,1746448238629,-500.0,0.00034107,7]
[359958736,1746448238639,-500.0,0.00034107,7]
[359958738,1746448238649,-500.0,0.00034107,7]
[359958740,1746448238658,-637.40428315,0.00034107,7]
[359958742,1746448238667,-500.0,0.00034107,7]
[359958743,1746448238677,-500.0,0.00034107,7]
[359958745,1746448238686,-500.0,0.00034107,7]
[359958747,1746448238695,-500.0,0.00034107,7]
[359958748,1746448238705,-500.0,0.00034107,7]
[359958749,1746448238714,-500.0,0.00034107,7]
[359958750,1746448238724,-456.66756509,0.00034107,7]
[359958751,1746448238733,-500.0,0.00034107,7]
[359958752,1746448238743,-500.0,0.00034107,7]
[359958753,1746448238752,-500.0,0.00034107,7]
[359958754,1746448238762,-500.0,0.00034107,7]
[359958755,1746448238771,-500.0,0.00034107,7]
[359958756,1746448238781,-500.0,0.00034107,7]
[359958757,1746448238791,-500.0,0.00034107,7]
[359958758,1746448238801,-500.0,0.00034107,7]
[359958759,1746448238810,-500.0,0.00034107,7]
[359958760,1746448238820,-500.0,0.00034107,7]
[359958761,1746448238830,-150.0,0.00035297,2]